[Event "Titled Tuesday Blitz January 31 Early 2023"]
[White "Vaglio Munoz, Jaime"]
[Black "Senthil, Maran K"]
[WhiteFideId "6500145"]
[BlackFideId "25035681"]
[WhiteElo "2174"]
[BlackElo "2209"]
[Result "0-1"]
[Round "02"]
[TimeControl "180+2"]
[Date "2023.01.31"]
[WhiteClock "0:00:12"]
[BlackClock "0:01:27"]

1. d4 {[%clk 0:03:00]}  Nf6 {[%clk 0:02:52]} 2. c4 {[%clk 0:02:55]}  e6 {[%clk 0:02:52]} 3. a3 {[%clk 0:02:54]}  d5 {[%clk 0:02:49]} 4. e3 {[%clk 0:02:53]}  Nbd7 {[%clk 0:02:44]} 5. f4 {[%clk 0:02:50]}  c5 {[%clk 0:02:43]} 6. Nf3 {[%clk 0:02:47]}  cxd4 {[%clk 0:02:43]} 7. exd4 {[%clk 0:02:47]}  dxc4 {[%clk 0:02:43]} 8. Bxc4 {[%clk 0:02:46]}  Nb6 {[%clk 0:02:43]} 9. Ba2 {[%clk 0:02:45]}  Bd7 {[%clk 0:02:43]} 10. O-O {[%clk 0:02:44]}  Be7 {[%clk 0:02:43]} 11. Nc3 {[%clk 0:02:44]}  O-O {[%clk 0:02:43]} 12. f5 {[%clk 0:02:41]}  exf5 {[%clk 0:02:43]} 13. d5 {[%clk 0:02:41]}  Ne4 {[%clk 0:02:41]} 14. Bf4 {[%clk 0:02:38]}  Bf6 {[%clk 0:02:39]} 15. Be5 {[%clk 0:02:36]}  Re8 {[%clk 0:02:38]} 16. Qd4 {[%clk 0:02:33]}  Bxe5 {[%clk 0:02:34]} 17. Nxe5 {[%clk 0:02:32]}  Qf6 {[%clk 0:02:34]} 18. Nf3 {[%clk 0:02:28]}  Qxd4+ {[%clk 0:02:34]} 19. Nxd4 {[%clk 0:02:29]}  g6 {[%clk 0:02:30]} 20. Ncb5 {[%clk 0:02:10]}  Rec8 {[%clk 0:02:22]} 21. a4 {[%clk 0:02:07]}  a6 {[%clk 0:02:20]} 22. a5 {[%clk 0:02:07]}  Na4 {[%clk 0:02:10]} 23. b3 {[%clk 0:01:51]}  axb5 {[%clk 0:02:08]} 24. bxa4 {[%clk 0:01:51]}  bxa4 {[%clk 0:02:08]} 25. Nf3 {[%clk 0:01:25]}  Rxa5 {[%clk 0:01:59]} 26. Ne5 {[%clk 0:01:22]}  Be8 {[%clk 0:01:58]} 27. Rad1 {[%clk 0:01:20]}  Kg7 {[%clk 0:01:56]} 28. Nc4 {[%clk 0:00:57]}  Rac5 {[%clk 0:01:48]} 29. Nb6 {[%clk 0:00:56]}  Rd8 {[%clk 0:01:48]} 30. Rd4 {[%clk 0:00:50]}  Rd6 {[%clk 0:01:40]} 31. Nxa4 {[%clk 0:00:48]}  Bxa4 {[%clk 0:01:41]} 32. Rxa4 {[%clk 0:00:47]}  Nc3 {[%clk 0:01:42]} 33. Ra3 {[%clk 0:00:45]}  Nxa2 {[%clk 0:01:42]} 34. Rxa2 {[%clk 0:00:45]}  Rcxd5 {[%clk 0:01:43]} 35. Rb2 {[%clk 0:00:44]}  Rd7 {[%clk 0:01:40]} 36. h3 {[%clk 0:00:43]}  Rd2 {[%clk 0:01:40]} 37. Rb6 {[%clk 0:00:40]}  Re2 {[%clk 0:01:37]} 38. Rf3 {[%clk 0:00:37]}  Rdd2 {[%clk 0:01:36]} 39. Rg3 {[%clk 0:00:37]}  Rb2 {[%clk 0:01:35]} 40. Kf1 {[%clk 0:00:32]}  Rxb6 {[%clk 0:01:34]} 41. Kxe2 {[%clk 0:00:32]}  Rb2+ {[%clk 0:01:35]} 42. Kd1 {[%clk 0:00:30]}  b5 {[%clk 0:01:33]} 43. Kc1 {[%clk 0:00:30]}  Rf2 {[%clk 0:01:32]} 44. h4 {[%clk 0:00:28]}  Kh6 {[%clk 0:01:32]} 45. Kd1 {[%clk 0:00:26]}  f4 {[%clk 0:01:32]} 46. Rb3 {[%clk 0:00:19]}  Rxg2 {[%clk 0:01:30]} 47. Rxb5 {[%clk 0:00:18]}  f3 {[%clk 0:01:30]} 48. Ke1 {[%clk 0:00:18]}  f5 {[%clk 0:01:30]} 49. Kf1 {[%clk 0:00:18]}  Kh5 {[%clk 0:01:29]} 50. Rb7 {[%clk 0:00:18]}  h6 {[%clk 0:01:28]} 51. Rb4 {[%clk 0:00:18]}  g5 {[%clk 0:01:25]} 52. hxg5 {[%clk 0:00:17]}  hxg5 {[%clk 0:01:26]} 53. Ra4 {[%clk 0:00:16]}  g4 {[%clk 0:01:26]} 54. Ra5 {[%clk 0:00:15]}  Kg5 {[%clk 0:01:26]} 55. Ra4 {[%clk 0:00:15]}  Rb2 {[%clk 0:01:26]} 56. Ra1 {[%clk 0:00:12]}  g3 {[%clk 0:01:26]} 57. Kg1 {[%clk 0:00:12]}  Kg4 {[%clk 0:01:26]} 58. Kh1 {[%clk 0:00:12]}  Rh2+ {[%clk 0:01:26]} 59. Kg1 {[%clk 0:00:11]}  f2+ {[%clk 0:01:27]} 60. Kf1 {[%clk 0:00:12]}  Rh1+ {[%clk 0:01:28]} 61. Ke2 {[%clk 0:00:12]}  Rxa1 {[%clk 0:01:27]} 0-1


[Site "https://www.chess.com"]

[Event "Titled Tuesday Blitz January 31 Early 2023"]
[White "De Souza, Cristiano Gomes"]
[Black "Kokoszczynski, Jan"]
[WhiteFideId "2151758"]
[BlackFideId "1174460"]
[WhiteElo "2018"]
[BlackElo "2247"]
[Result "0-1"]
[Round "02"]
[TimeControl "180+2"]
[Date "2023.01.31"]
[WhiteClock "0:00:18"]
[BlackClock "0:00:15"]

1. d4 {[%clk 0:03:00]}  d5 {[%clk 0:02:56]} 2. c4 {[%clk 0:03:00]}  e6 {[%clk 0:02:50]} 3. Nc3 {[%clk 0:02:59]}  Nf6 {[%clk 0:02:50]} 4. Nf3 {[%clk 0:02:57]}  Be7 {[%clk 0:02:48]} 5. Bg5 {[%clk 0:02:56]}  O-O {[%clk 0:02:44]} 6. e3 {[%clk 0:02:55]}  h6 {[%clk 0:02:44]} 7. Bh4 {[%clk 0:02:55]}  b6 {[%clk 0:02:44]} 8. Rc1 {[%clk 0:02:54]}  Bb7 {[%clk 0:02:40]} 9. Bxf6 {[%clk 0:02:53]}  Bxf6 {[%clk 0:02:40]} 10. cxd5 {[%clk 0:02:53]}  exd5 {[%clk 0:02:40]} 11. b4 {[%clk 0:02:53]}  c6 {[%clk 0:02:21]} 12. Bd3 {[%clk 0:02:51]}  a5 {[%clk 0:02:20]} 13. a3 {[%clk 0:02:50]}  axb4 {[%clk 0:02:18]} 14. axb4 {[%clk 0:02:50]}  Qd6 {[%clk 0:02:16]} 15. Qb3 {[%clk 0:02:48]}  Nd7 {[%clk 0:01:58]} 16. O-O {[%clk 0:02:46]}  Rfe8 {[%clk 0:01:58]} 17. Ra1 {[%clk 0:02:37]}  b5 {[%clk 0:01:39]} 18. Ne2 {[%clk 0:02:27]}  Nb6 {[%clk 0:01:34]} 19. Ng3 {[%clk 0:02:21]}  Nc4 {[%clk 0:00:56]} 20. Qc3 {[%clk 0:02:18]}  Be7 {[%clk 0:00:52]} 21. Rxa8 {[%clk 0:01:56]}  Rxa8 {[%clk 0:00:51]} 22. Rb1 {[%clk 0:01:49]}  Ra3 {[%clk 0:00:50]} 23. Qc2 {[%clk 0:01:37]}  g6 {[%clk 0:00:48]} 24. e4 {[%clk 0:01:31]}  Ra4 {[%clk 0:00:38]} 25. e5 {[%clk 0:01:30]}  Qe6 {[%clk 0:00:38]} 26. Bxc4 {[%clk 0:01:11]}  dxc4 {[%clk 0:00:38]} 27. Qc3 {[%clk 0:01:04]}  Ra2 {[%clk 0:00:38]} 28. h3 {[%clk 0:01:01]}  Bc8 {[%clk 0:00:37]} 29. Rb2 {[%clk 0:00:54]}  Ra1+ {[%clk 0:00:36]} 30. Kh2 {[%clk 0:00:53]}  Qd5 {[%clk 0:00:36]} 31. Ne2 {[%clk 0:00:51]}  Qe4 {[%clk 0:00:30]} 32. Ng3 {[%clk 0:00:48]}  Qd5 {[%clk 0:00:29]} 33. Ne2 {[%clk 0:00:48]}  Bf5 {[%clk 0:00:24]} 34. Nf4 {[%clk 0:00:46]}  Qe4 {[%clk 0:00:24]} 35. Qe3 {[%clk 0:00:44]}  Qxe3 {[%clk 0:00:22]} 36. fxe3 {[%clk 0:00:44]}  c3 {[%clk 0:00:21]} 37. Rf2 {[%clk 0:00:42]}  c2 {[%clk 0:00:20]} 38. Ne2 {[%clk 0:00:35]}  Bd3 {[%clk 0:00:17]} 39. Nfg1 {[%clk 0:00:25]}  Rxg1 {[%clk 0:00:15]} 40. Nxg1 {[%clk 0:00:18]}  c1=Q {[%clk 0:00:15]} 41. Nf3 {[%clk 0:00:18]}  Qxe3 {[%clk 0:00:15]} 0-1


[Site "https://www.chess.com"]

[Event "Titled Tuesday Blitz January 31 Early 2023"]
[White "Dilmukhametov, Artur"]
[Black "Martin Duque, Jesus"]
[WhiteFideId "24179922"]
[BlackFideId "2208954"]
[WhiteElo "2276"]
[BlackElo "2386"]
[Result "0-1"]
[Round "02"]
[TimeControl "180+2"]
[Date "2023.01.31"]
[WhiteClock "0:02:06"]
[BlackClock "0:02:49"]

1. d4 {[%clk 0:03:00]}  Nf6 {[%clk 0:02:59]} 2. Nc3 {[%clk 0:03:00]}  b6 {[%clk 0:03:00]} 3. Bf4 {[%clk 0:02:59]}  d5 {[%clk 0:02:59]} 4. e3 {[%clk 0:02:58]}  Bb7 {[%clk 0:02:59]} 5. Nf3 {[%clk 0:02:57]}  e6 {[%clk 0:02:58]} 6. Bd3 {[%clk 0:02:56]}  Bb4 {[%clk 0:02:58]} 7. h3 {[%clk 0:02:52]}  O-O {[%clk 0:02:58]} 8. g4 {[%clk 0:02:52]}  c5 {[%clk 0:02:57]} 9. g5 {[%clk 0:02:46]}  Ne4 {[%clk 0:02:56]} 10. Bxe4 {[%clk 0:02:40]}  dxe4 {[%clk 0:02:56]} 11. Ne5 {[%clk 0:02:39]}  cxd4 {[%clk 0:02:56]} 12. Qxd4 {[%clk 0:02:34]}  Qxd4 {[%clk 0:02:55]} 13. exd4 {[%clk 0:02:34]}  e3 {[%clk 0:02:56]} 14. Bxe3 {[%clk 0:02:32]}  Bxh1 {[%clk 0:02:56]} 15. Kd2 {[%clk 0:02:24]}  Bb7 {[%clk 0:02:54]} 16. h4 {[%clk 0:02:23]}  Nc6 {[%clk 0:02:52]} 17. h5 {[%clk 0:02:18]}  Nxe5 {[%clk 0:02:52]} 18. dxe5 {[%clk 0:02:17]}  Rfd8+ {[%clk 0:02:52]} 19. Ke2 {[%clk 0:02:16]}  Rac8 {[%clk 0:02:52]} 20. g6 {[%clk 0:02:11]}  hxg6 {[%clk 0:02:51]} 21. hxg6 {[%clk 0:02:11]}  fxg6 {[%clk 0:02:52]} 22. Rg1 {[%clk 0:02:11]}  Bxc3 {[%clk 0:02:52]} 23. bxc3 {[%clk 0:02:09]}  Rxc3 {[%clk 0:02:51]} 24. Rxg6 {[%clk 0:02:08]}  Rxc2+ {[%clk 0:02:52]} 25. Kf1 {[%clk 0:02:06]}  Rd1# {[%clk 0:02:49]} 0-1


[Site "https://www.chess.com"]

[Event "Titled Tuesday Blitz January 31 Early 2023"]
[White "Mortazavi, Ali"]
[Black "Kohler, Aran"]
[WhiteFideId "401323"]
[BlackFideId "1002856"]
[WhiteElo "2333"]
[BlackElo "2010"]
[Result "1-0"]
[Round "02"]
[TimeControl "180+2"]
[Date "2023.01.31"]
[WhiteClock "0:00:32"]
[BlackClock "0:00:01"]

1. e4 {[%clk 0:03:00]}  c6 {[%clk 0:02:59]} 2. Nc3 {[%clk 0:02:58]}  d5 {[%clk 0:02:59]} 3. Qf3 {[%clk 0:02:59]}  d4 {[%clk 0:02:56]} 4. Bc4 {[%clk 0:02:57]}  e6 {[%clk 0:02:56]} 5. Nce2 {[%clk 0:02:55]}  b5 {[%clk 0:02:50]} 6. Bb3 {[%clk 0:02:54]}  Nf6 {[%clk 0:02:46]} 7. d3 {[%clk 0:02:54]}  Bb4+ {[%clk 0:02:34]} 8. c3 {[%clk 0:02:51]}  dxc3 {[%clk 0:02:34]} 9. bxc3 {[%clk 0:02:52]}  Be7 {[%clk 0:02:27]} 10. d4 {[%clk 0:02:34]}  Bb7 {[%clk 0:02:11]} 11. e5 {[%clk 0:02:28]}  Nd5 {[%clk 0:02:08]} 12. Qg3 {[%clk 0:02:28]}  Kf8 {[%clk 0:02:00]} 13. Nf3 {[%clk 0:02:24]}  c5 {[%clk 0:01:54]} 14. O-O {[%clk 0:02:19]}  c4 {[%clk 0:01:41]} 15. Bc2 {[%clk 0:02:18]}  h6 {[%clk 0:01:41]} 16. h4 {[%clk 0:02:13]}  a5 {[%clk 0:01:36]} 17. Nd2 {[%clk 0:01:57]}  Nc6 {[%clk 0:01:12]} 18. h5 {[%clk 0:01:55]}  Qc7 {[%clk 0:00:51]} 19. Ne4 {[%clk 0:01:49]}  Rg8 {[%clk 0:00:38]} 20. f4 {[%clk 0:01:36]}  f5 {[%clk 0:00:31]} 21. exf6 {[%clk 0:01:31]}  gxf6 {[%clk 0:00:29]} 22. Qh3 {[%clk 0:01:27]}  f5 {[%clk 0:00:20]} 23. N4g3 {[%clk 0:01:18]}  Kf7 {[%clk 0:00:20]} 24. Kh1 {[%clk 0:00:59]}  Nf6 {[%clk 0:00:19]} 25. d5 {[%clk 0:00:55]}  Nxd5 {[%clk 0:00:18]} 26. Nxf5 {[%clk 0:00:54]}  exf5 {[%clk 0:00:17]} 27. Bxf5 {[%clk 0:00:54]}  Nd8 {[%clk 0:00:15]} 28. Bg6+ {[%clk 0:00:53]}  Kf8 {[%clk 0:00:15]} 29. Nd4 {[%clk 0:00:51]}  Nf6 {[%clk 0:00:16]} 30. f5 {[%clk 0:00:47]}  Bc8 {[%clk 0:00:16]} 31. Bxh6+ {[%clk 0:00:47]}  Rg7 {[%clk 0:00:15]} 32. Rae1 {[%clk 0:00:43]}  Ra6 {[%clk 0:00:13]} 33. Re3 {[%clk 0:00:38]}  Kg8 {[%clk 0:00:13]} 34. Rfe1 {[%clk 0:00:38]}  Nc6 {[%clk 0:00:07]} 35. Nxc6 {[%clk 0:00:36]}  Rxc6 {[%clk 0:00:06]} 36. Bxg7 {[%clk 0:00:37]}  Nd5 {[%clk 0:00:04]} 37. h6 {[%clk 0:00:31]}  Nxe3 {[%clk 0:00:02]} 38. h7+ {[%clk 0:00:31]}  Kxg7 {[%clk 0:00:01]} 39. h8=Q# {[%clk 0:00:32]} 1-0


[Site "https://www.chess.com"]

[Event "Titled Tuesday Blitz January 31 Early 2023"]
[White "Broca Jimenez, Fernando"]
[Black "Mohammed, Zozek Salah Mohammed"]
[WhiteFideId "5104742"]
[BlackFideId "4803361"]
[WhiteElo "2075"]
[BlackElo "2210"]
[Result "0-1"]
[Round "02"]
[TimeControl "180+2"]
[Date "2023.01.31"]
[WhiteClock "0:00:17"]
[BlackClock "0:00:53"]

1. e4 {[%clk 0:03:00]}  e6 {[%clk 0:02:59]} 2. d3 {[%clk 0:02:45]}  d5 {[%clk 0:02:58]} 3. Nd2 {[%clk 0:02:43]}  Nf6 {[%clk 0:02:58]} 4. g3 {[%clk 0:02:37]}  Be7 {[%clk 0:02:58]} 5. Bg2 {[%clk 0:02:36]}  O-O {[%clk 0:02:58]} 6. Ngf3 {[%clk 0:02:32]}  c5 {[%clk 0:02:58]} 7. O-O {[%clk 0:02:32]}  Nc6 {[%clk 0:02:58]} 8. Re1 {[%clk 0:02:30]}  Qc7 {[%clk 0:02:58]} 9. h4 {[%clk 0:02:21]}  b5 {[%clk 0:02:57]} 10. Nh2 {[%clk 0:02:21]}  a5 {[%clk 0:02:55]} 11. Ndf3 {[%clk 0:02:15]}  Ba6 {[%clk 0:02:48]} 12. e5 {[%clk 0:02:10]}  Nd7 {[%clk 0:02:46]} 13. Bf4 {[%clk 0:02:10]}  Nd4 {[%clk 0:02:41]} 14. c3 {[%clk 0:01:49]}  Nxf3+ {[%clk 0:02:39]} 15. Qxf3 {[%clk 0:01:45]}  b4 {[%clk 0:02:31]} 16. Rac1 {[%clk 0:01:40]}  bxc3 {[%clk 0:02:22]} 17. Rxc3 {[%clk 0:01:06]}  Rfc8 {[%clk 0:02:21]} 18. Ng4 {[%clk 0:00:48]}  Rab8 {[%clk 0:02:13]} 19. b3 {[%clk 0:00:47]}  d4 {[%clk 0:02:09]} 20. Rcc1 {[%clk 0:00:42]}  Bb7 {[%clk 0:02:09]} 21. Qe2 {[%clk 0:00:42]}  Bxg2 {[%clk 0:02:09]} 22. Kxg2 {[%clk 0:00:43]}  Nb6 {[%clk 0:01:59]} 23. f3 {[%clk 0:00:33]}  Nd5 {[%clk 0:01:58]} 24. Bd2 {[%clk 0:00:32]}  a4 {[%clk 0:01:53]} 25. bxa4 {[%clk 0:00:24]}  Rb2 {[%clk 0:01:52]} 26. Qd1 {[%clk 0:00:20]}  Rxa2 {[%clk 0:01:51]} 27. Kh3 {[%clk 0:00:19]}  h5 {[%clk 0:01:50]} 28. Nf2 {[%clk 0:00:19]}  Qc6 {[%clk 0:01:44]} 29. Ne4 {[%clk 0:00:19]}  Qxa4 {[%clk 0:01:40]} 30. Qe2 {[%clk 0:00:17]}  Ne3 {[%clk 0:01:33]} 31. f4 {[%clk 0:00:16]}  c4 {[%clk 0:01:24]} 32. Qxh5 {[%clk 0:00:15]}  Qa8 {[%clk 0:01:12]} 33. Bxe3 {[%clk 0:00:15]}  dxe3 {[%clk 0:01:12]} 34. Rxe3 {[%clk 0:00:15]}  cxd3 {[%clk 0:01:02]} 35. Rxc8+ {[%clk 0:00:16]}  Qxc8 {[%clk 0:01:02]} 36. Rxd3 {[%clk 0:00:16]}  Qc2 {[%clk 0:00:58]} 37. Rd2 {[%clk 0:00:16]}  Qxe4 {[%clk 0:00:57]} 38. Rxa2 {[%clk 0:00:17]}  Qh1+ {[%clk 0:00:57]} 39. Kg4 {[%clk 0:00:16]}  Qd1+ {[%clk 0:00:56]} 40. Kh3 {[%clk 0:00:15]}  Qxh5 {[%clk 0:00:56]} 41. g4 {[%clk 0:00:15]}  Qg6 {[%clk 0:00:54]} 42. Ra8+ {[%clk 0:00:16]}  Kh7 {[%clk 0:00:54]} 43. f5 {[%clk 0:00:16]}  exf5 {[%clk 0:00:53]} 44. Ra6 {[%clk 0:00:17]} 0-1


[Site "https://www.chess.com"]

[Event "Titled Tuesday Blitz January 31 Early 2023"]
[White "Clawitter, Craig"]
[Black "Jovic, Stanoje"]
[WhiteFideId "2023105"]
[BlackFideId "905020"]
[WhiteElo "2050"]
[BlackElo "2075"]
[Result "0-1"]
[Round "02"]
[TimeControl "180+2"]
[Date "2023.01.31"]
[WhiteClock "0:00:17"]
[BlackClock "0:01:48"]

1. e4 {[%clk 0:03:00]}  c6 {[%clk 0:02:59]} 2. d4 {[%clk 0:03:00]}  d5 {[%clk 0:02:59]} 3. e5 {[%clk 0:03:00]}  c5 {[%clk 0:02:59]} 4. dxc5 {[%clk 0:02:57]}  e6 {[%clk 0:02:59]} 5. a3 {[%clk 0:02:53]}  Bxc5 {[%clk 0:02:59]} 6. Nf3 {[%clk 0:02:50]}  Ne7 {[%clk 0:02:55]} 7. Bd3 {[%clk 0:02:47]}  Ng6 {[%clk 0:02:54]} 8. b4 {[%clk 0:02:44]}  Be7 {[%clk 0:02:53]} 9. O-O {[%clk 0:02:44]}  f6 {[%clk 0:02:49]} 10. Bb2 {[%clk 0:02:31]}  Nc6 {[%clk 0:02:49]} 11. Re1 {[%clk 0:02:19]}  Ngxe5 {[%clk 0:02:43]} 12. Nxe5 {[%clk 0:02:19]}  Nxe5 {[%clk 0:02:41]} 13. Bxe5 {[%clk 0:02:17]}  fxe5 {[%clk 0:02:41]} 14. Qh5+ {[%clk 0:02:15]}  Kf8 {[%clk 0:02:25]} 15. Qxe5 {[%clk 0:02:07]}  Bf6 {[%clk 0:02:23]} 16. Qf4 {[%clk 0:02:07]}  g5 {[%clk 0:02:19]} 17. Qf3 {[%clk 0:01:53]}  Kg7 {[%clk 0:02:19]} 18. Ra2 {[%clk 0:01:28]}  e5 {[%clk 0:02:18]} 19. Bf5 {[%clk 0:01:10]}  e4 {[%clk 0:02:14]} 20. Qh3 {[%clk 0:00:59]}  h5 {[%clk 0:02:11]} 21. Bxc8 {[%clk 0:00:44]}  Qxc8 {[%clk 0:02:11]} 22. Qg3 {[%clk 0:00:21]}  h4 {[%clk 0:02:03]} 23. Qd6 {[%clk 0:00:21]}  Rd8 {[%clk 0:02:01]} 24. Qc5 {[%clk 0:00:17]}  Qxc5 {[%clk 0:02:01]} 25. bxc5 {[%clk 0:00:18]}  Rac8 {[%clk 0:02:00]} 26. c4 {[%clk 0:00:18]}  dxc4 {[%clk 0:01:53]} 27. Rd2 {[%clk 0:00:17]}  Rxd2 {[%clk 0:01:49]} 28. Nxd2 {[%clk 0:00:17]}  Bc3 {[%clk 0:01:49]} 29. Re2 {[%clk 0:00:17]}  Bxd2 {[%clk 0:01:49]} 30. Rxd2 {[%clk 0:00:17]}  Rxc5 {[%clk 0:01:49]} 31. Rd7+ {[%clk 0:00:15]}  Kf6 {[%clk 0:01:49]} 32. Rxb7 {[%clk 0:00:16]}  c3 {[%clk 0:01:49]} 33. Rb1 {[%clk 0:00:17]}  c2 {[%clk 0:01:49]} 34. Rc1 {[%clk 0:00:17]}  Rd5 {[%clk 0:01:48]} 0-1


[Site "https://www.chess.com"]

[Event "Titled Tuesday Blitz January 31 Early 2023"]
[White "Dos Santos, Emmanuel"]
[Black "Nguyen Hong Nhung"]
[WhiteFideId "2103559"]
[BlackFideId "12412201"]
[WhiteElo "2261"]
[BlackElo "2003"]
[Result "0-1"]
[Round "02"]
[TimeControl "180+2"]
[Date "2023.01.31"]
[WhiteClock "0:00:11"]
[BlackClock "0:00:50"]

1. e4 {[%clk 0:03:00]}  c5 {[%clk 0:02:58]} 2. Nf3 {[%clk 0:03:00]}  e6 {[%clk 0:02:59]} 3. d4 {[%clk 0:03:01]}  cxd4 {[%clk 0:03:00]} 4. Nxd4 {[%clk 0:03:01]}  Nf6 {[%clk 0:03:00]} 5. Nc3 {[%clk 0:03:00]}  Nc6 {[%clk 0:03:01]} 6. Be2 {[%clk 0:02:52]}  Bb4 {[%clk 0:02:59]} 7. Qd3 {[%clk 0:02:45]}  d5 {[%clk 0:02:45]} 8. exd5 {[%clk 0:02:35]}  Nxd5 {[%clk 0:02:43]} 9. Nxc6 {[%clk 0:02:02]}  bxc6 {[%clk 0:02:44]} 10. Qc4 {[%clk 0:01:42]}  Bxc3+ {[%clk 0:02:37]} 11. bxc3 {[%clk 0:01:42]}  Qd6 {[%clk 0:02:22]} 12. a4 {[%clk 0:01:38]}  Bd7 {[%clk 0:02:11]} 13. O-O {[%clk 0:01:26]}  Qe5 {[%clk 0:02:04]} 14. Ba3 {[%clk 0:00:50]}  Qxc3 {[%clk 0:01:50]} 15. Qh4 {[%clk 0:00:26]}  c5 {[%clk 0:01:34]} 16. Rfd1 {[%clk 0:00:20]}  O-O {[%clk 0:01:30]} 17. Ra2 {[%clk 0:00:18]}  Rfc8 {[%clk 0:01:23]} 18. Bb2 {[%clk 0:00:18]}  Qb4 {[%clk 0:01:17]} 19. c4 {[%clk 0:00:14]}  Bc6 {[%clk 0:00:50]} 20. cxd5 {[%clk 0:00:11]}  Qxh4 {[%clk 0:00:50]} 0-1


[Site "https://www.chess.com"]

[Event "Titled Tuesday Blitz January 31 Early 2023"]
[White "Alhadad, Mahmoud"]
[Black "Kochetov, Andrey"]
[WhiteFideId "11501863"]
[BlackFideId "24130532"]
[WhiteElo "1840"]
[BlackElo "2165"]
[Result "0-1"]
[Round "02"]
[TimeControl "180+2"]
[Date "2023.01.31"]
[WhiteClock "0:00:03"]
[BlackClock "0:00:06"]

1. e4 {[%clk 0:03:00]}  c5 {[%clk 0:02:59]} 2. Nc3 {[%clk 0:03:01]}  Nc6 {[%clk 0:02:59]} 3. Bb5 {[%clk 0:03:00]}  Nd4 {[%clk 0:02:59]} 4. Nf3 {[%clk 0:03:00]}  e6 {[%clk 0:02:56]} 5. O-O {[%clk 0:02:58]}  a6 {[%clk 0:02:44]} 6. Bd3 {[%clk 0:02:56]}  Ne7 {[%clk 0:02:44]} 7. Nxd4 {[%clk 0:02:56]}  cxd4 {[%clk 0:02:44]} 8. Ne2 {[%clk 0:02:56]}  Nc6 {[%clk 0:02:44]} 9. b3 {[%clk 0:02:56]}  Nb4 {[%clk 0:02:20]} 10. Bb2 {[%clk 0:02:40]}  e5 {[%clk 0:01:59]} 11. f4 {[%clk 0:02:36]}  Nxd3 {[%clk 0:01:57]} 12. cxd3 {[%clk 0:02:35]}  d6 {[%clk 0:01:57]} 13. Rc1 {[%clk 0:02:16]}  Be7 {[%clk 0:01:53]} 14. Ng3 {[%clk 0:01:54]}  O-O {[%clk 0:01:50]} 15. Qc2 {[%clk 0:01:49]}  Bd7 {[%clk 0:01:37]} 16. Qc7 {[%clk 0:01:45]}  Bc6 {[%clk 0:01:35]} 17. Qxd8 {[%clk 0:01:41]}  Rfxd8 {[%clk 0:01:21]} 18. Nf5 {[%clk 0:01:33]}  Bf8 {[%clk 0:01:17]} 19. Ba3 {[%clk 0:01:32]}  g6 {[%clk 0:01:09]} 20. Ng3 {[%clk 0:01:29]}  Rac8 {[%clk 0:01:07]} 21. f5 {[%clk 0:01:27]}  Bb5 {[%clk 0:01:00]} 22. Rf3 {[%clk 0:01:02]}  Rxc1+ {[%clk 0:00:50]} 23. Bxc1 {[%clk 0:01:03]}  Bh6 {[%clk 0:00:48]} 24. fxg6 {[%clk 0:00:40]}  fxg6 {[%clk 0:00:27]} 25. Kf1 {[%clk 0:00:40]}  Rc8 {[%clk 0:00:15]} 26. Ne2 {[%clk 0:00:39]}  Rc2 {[%clk 0:00:11]} 27. a4 {[%clk 0:00:39]}  Be8 {[%clk 0:00:05]} 28. Ba3 {[%clk 0:00:36]}  Bf8 {[%clk 0:00:05]} 29. Rxf8+ {[%clk 0:00:36]}  Kxf8 {[%clk 0:00:05]} 30. Bxd6+ {[%clk 0:00:37]}  Kf7 {[%clk 0:00:05]} 31. Bxe5 {[%clk 0:00:37]}  Rxd2 {[%clk 0:00:05]} 32. Nf4 {[%clk 0:00:30]}  Rb2 {[%clk 0:00:05]} 33. Bxd4 {[%clk 0:00:25]}  Rxb3 {[%clk 0:00:05]} 34. Ke2 {[%clk 0:00:24]}  Bxa4 {[%clk 0:00:05]} 35. h4 {[%clk 0:00:20]}  Bb5 {[%clk 0:00:06]} 36. Ke3 {[%clk 0:00:18]}  a5 {[%clk 0:00:06]} 37. Bc5 {[%clk 0:00:13]}  a4 {[%clk 0:00:07]} 38. Kd2 {[%clk 0:00:12]}  a3 {[%clk 0:00:07]} 39. Bxa3 {[%clk 0:00:12]}  Rxa3 {[%clk 0:00:08]} 40. Nd5 {[%clk 0:00:11]}  Rxd3+ {[%clk 0:00:08]} 41. Kc2 {[%clk 0:00:11]}  Rg3 {[%clk 0:00:05]} 42. Nc7 {[%clk 0:00:10]}  Bd3+ {[%clk 0:00:05]} 43. Kd2 {[%clk 0:00:10]}  Bxe4 {[%clk 0:00:06]} 44. Nb5 {[%clk 0:00:10]}  Rxg2+ {[%clk 0:00:07]} 45. Ke3 {[%clk 0:00:11]}  Rh2 {[%clk 0:00:07]} 46. Kxe4 {[%clk 0:00:11]}  Rxh4+ {[%clk 0:00:08]} 47. Kf3 {[%clk 0:00:11]}  Rh5 {[%clk 0:00:08]} 48. Nd6+ {[%clk 0:00:12]}  Ke6 {[%clk 0:00:09]} 49. Nxb7 {[%clk 0:00:13]}  Rb5 {[%clk 0:00:08]} 50. Nd8+ {[%clk 0:00:13]}  Kf6 {[%clk 0:00:08]} 51. Nc6 {[%clk 0:00:13]}  h5 {[%clk 0:00:07]} 52. Nd4 {[%clk 0:00:11]}  Ra5 {[%clk 0:00:07]} 53. Nc6 {[%clk 0:00:11]}  Ra4 {[%clk 0:00:06]} 54. Nd8 {[%clk 0:00:09]}  g5 {[%clk 0:00:06]} 55. Nb7 {[%clk 0:00:08]}  h4 {[%clk 0:00:04]} 56. Nd6 {[%clk 0:00:08]}  Rf4+ {[%clk 0:00:03]} 57. Kg2 {[%clk 0:00:07]}  Kg6 {[%clk 0:00:04]} 58. Nb5 {[%clk 0:00:05]}  g4 {[%clk 0:00:04]} 59. Nc3 {[%clk 0:00:05]}  Kg5 {[%clk 0:00:04]} 60. Nd5 {[%clk 0:00:05]}  Rd4 {[%clk 0:00:05]} 61. Ne7 {[%clk 0:00:04]}  Re4 {[%clk 0:00:04]} 62. Nc6 {[%clk 0:00:05]}  h3+ {[%clk 0:00:04]} 63. Kg3 {[%clk 0:00:04]}  Re3+ {[%clk 0:00:04]} 64. Kh2 {[%clk 0:00:05]}  Kh4 {[%clk 0:00:04]} 65. Nd4 {[%clk 0:00:05]}  g3+ {[%clk 0:00:05]} 66. Kg1 {[%clk 0:00:06]}  Kg4 {[%clk 0:00:05]} 67. Kf1 {[%clk 0:00:04]}  g2+ {[%clk 0:00:05]} 68. Kf2 {[%clk 0:00:04]}  Rg3 {[%clk 0:00:05]} 69. Ne2 {[%clk 0:00:04]}  h2 {[%clk 0:00:04]} 70. Nxg3 {[%clk 0:00:04]}  g1=Q+ {[%clk 0:00:05]} 71. Ke2 {[%clk 0:00:03]}  Kxg3 {[%clk 0:00:05]} 72. Kd3 {[%clk 0:00:03]}  h1=Q {[%clk 0:00:05]} 73. Ke2 {[%clk 0:00:03]}  Qf3+ {[%clk 0:00:05]} 74. Kd2 {[%clk 0:00:03]}  Qgd1# {[%clk 0:00:06]} 0-1


[Site "https://www.chess.com"]